[Event "Polish Youth B18 Championship 2023"]
[Site "Jastrzebia Gora"]
[Date "2023.03.14"]
[Round "4.17"]
[White "Kolodziejski, Piotr"]
[Black "Smuda, Tomasz"]
[Result "1-0"]
[ECO "B18"]
[WhiteElo "2118"]
[BlackElo "1654"]
[Annotator "TA"]
[PlyCount "133"]
[EventDate "2023.03.11"]
[EventType "swiss"]
[EventCountry "POL"]
[SourceTitle "playchess.com"]
[Source "ChessBase"]
[SourceQuality "1"]
[TimeControl "40/5400+30:1800+30"]

{[%evp 11,132,21,18,7,8,14,118,118,116,113,102,71,139,130,320,311,313,225,218,227,327,208,206,188,177,178,166,168,331,337,333,332,376,348,479,502,491,506,495,483,449,179,152,144,233,193,189,189,239,200,255,187,187,187,220,229,214,206,200,175,241,173,173,114,157,137,522,520,497,508,489,397,387,362,922,895,1149,1083,1485,1470,1364,1316,2352,2490,5165,5081,6199,3093,6183,5981,5764,5651,5057,2518,5081,5081,5081,4143,29985,29984,29986,29987,29987,29988,29990,29986,29986,29987,29988,29989,29990,29991,29992,29992,29992,29988,29996,29993,29994,29995,29998,29999,29999]} 1. e4 {[%emt 0:00:02]} c6 {[%emt 0:00:15]} 2. d4 {[%emt 0:00:05]} d5 {[%emt 0:00:06]} 3. Nc3 {[%emt 0:00:05]} dxe4 {[%emt 0:00:10]} 4. Nxe4 {[%emt 0:00:05]} Bf5 {[%emt 0:00:14]} 5. Ng3 {[%emt 0:00:07]} Bg6 {[%emt 0:00:17]} 6. h4 {[%emt 0:01:08]} h6 {[%emt 0:00:16]} 7. N1e2 {[%emt 0:00:04] B18: Classical Caro-Kann: 4...Bf5 sidelines.} e5 {[%emt 0:05:17] Inhibits Nf4.} 8. dxe5 {[%emt 0:00:12]} Qa5+ {[%emt 0:00:25]} (8... Qxd1+ $1 $11 9. Kxd1 Nd7) 9. Bd2 $16 {[%emt 0:00:05] White is better.} Qxe5 {[%emt 0:00:17]} 10. Bc3 {[%emt 0:02:12]} Qc7 {[%emt 0:02:11]} 11. Qd2 {[%emt 0:03:43] [#]} Nf6 $146 {[%emt 0:02:13]} (11... Nd7 $142) ({Predecessor:} 11... Nd7 12. O-O-O O-O-O 13. Nf4 Ngf6 14. Nxg6 fxg6 15. Kb1 Bc5 16. Bc4 Rhe8 17. Bd4 Nb6 {0-1 Hiramine,R (1966)-Garcia,G (1921) Goiania-ch U26 2013 (6)}) 12. O-O-O $40 {[%emt 0:08:19][%mdl 128] White wants a kill.} (12. Bxf6 $6 gxf6 13. O-O-O (13. h5 Bh7 $14) 13... Nd7 $14) 12... Be7 $2 {[%emt 0:15:32]} (12... Nbd7 $16 {was called for.}) 13. Nf4 $18 {[%emt 0:03:34]} O-O {[%emt 0:01:55]} 14. Nxg6 {[%emt 0:09:57]} fxg6 {[%emt 0:00:11]} 15. Bc4+ {[%emt 0:00:48]} Kh8 (15... Nd5 {was worth a try.} 16. Qd3 (16. Bxd5+ cxd5 17. Qxd5+ Rf7 $16) 16... Bf6 17. Bxf6 (17. Bxd5+ cxd5 18. Qxd5+ Qf7 $18) 17... Rxf6 18. Bxd5+ (18. Ne4 Rf5 $18) 18... cxd5) 16. Rhe1 {[%emt 0:05:10] [#] Black must now prevent Ne2.} b5 {[%emt 0:19:05]} 17. Be6 {[%emt 0:20:42]} Na6 {[%emt 0:08:26]} 18. Ba5 {[%emt 0:02:21] A strong pair of Bishops.} Qb7 {[%emt 0:06:35]} 19. Qd3 {[%emt 0:02:49]} Nc5 $2 {[%emt 0:06:33]} (19... Bb4) 20. Qxg6 {[%emt 0:01:54]} Nxe6 {[%emt 0:00:45]} 21. Rxe6 {[%emt 0:00:07]} Nd5 {[%emt 0:05:28]} 22. Nh5 {[%emt 0:13:02][%csl Gh5][%cal Rg6g7] [#]} ({Less strong is} 22. Rxc6 Bf6 23. Rd6 Nf4 $16) 22... Bxh4 {[%emt 0:20:09]} 23. Rxc6 {[%emt 0:03:04][%cal Oc6c7]} Bg5+ {[%emt 0:02:52]} 24. Kb1 {[%emt 0:00:28][%cal Oc6c7] White threatens Rc7! and mate.} Nf4 {[%emt 0:01:51]} 25. Nxf4 {[%emt 0:00:55]} Bxf4 {[%emt 0:00:14]} 26. Re6 $2 {[%emt 0:06:20]} (26. Rc7 Qxc7 27. Bxc7 Bxc7 28. Rd7) 26... Qf7 {[%emt 0:00:55]} 27. Qe4 {[%emt 0:03:40] White has more active pieces.} Rac8 {[%emt 0:01:17]} (27... Rae8 $16 28. Rxe8 Qxe8) 28. Bc3 {[%emt 0:01:30] aiming for Re7.} Bg5 {[%emt 0:00:30] Repels Re7} 29. f3 {[%emt 0:02:39]} Rc4 (29... Rfd8 $142 30. Rh1 Kg8) 30. Qe2 {[%emt 0:00:20]} Rfc8 {[%emt 0:00:58]} 31. Rd4 {[%emt 0:02:59]} Rxd4 {[%emt 0:00:22]} 32. Bxd4 {[%emt 0:00:04]} Rd8 {[%emt 0:00:28]} 33. c3 {[%emt 0:01:23]} b4 {[%emt 0:00:38]} 34. Qe4 {[%emt 0:04:37] Strongly threatening Rg6.} bxc3 {[%emt 0:00:32] Black is weak on the light squares} 35. Bxc3 {[%emt 0:01:30]} Qd7 {[%emt 0:00:31]} (35... Rd1+ $142 36. Kc2 Rd8) 36. Qe2 {[%emt 0:00:36]} Rc8 {[%emt 0:00:30]} 37. g3 {[%emt 0:00:54]} (37. a3 $18) 37... Qb7 38. Re8+ {[%emt 0:00:44]} Kh7 $2 {[%emt 0:01:01][%mdl 8192]} (38... Rxe8 $16 39. Qxe8+ Kh7) 39. Qd3+ {[%emt 0:00:50]} g6 {[%emt 0:00:16]} 40. Rxc8 {[%emt 0:00:00]} ({Weaker is} 40. Re6 Qf7 41. Rd6 Rc7 $18) 40... Qxc8 {[%emt 0:00:00][%mdl 4096] Endgame KQB-KQB} 41. f4 {[%emt 0:02:13]} Qd8 {[%emt 0:02:50]} 42. Kc2 {[%emt 0:02:48]} Qxd3+ $2 {[%emt 0:03:23]} (42... Bf6 43. Qxd8 Bxd8) 43. Kxd3 {[%emt 0:00:05] KB-KB} Bd8 {[%emt 0:00:49]} 44. Ke4 {[%emt 0:01:13]} Kg8 {[%emt 0:00:15]} 45. b4 {[%emt 0:01:13]} Kf7 {[%emt 0:00:36]} 46. Kd5 {[%emt 0:01:43]} h5 {[%emt 0:10:48]} 47. b5 {[%emt 0:01:36] Threatens to win with Bd4.} Bb6 {[%emt 0:00:40]} 48. Bd4 {[%emt 0:04:29]} Ba5 {[%emt 0:00:34]} 49. Ke4 {[%emt 0:03:03]} (49. Bxa7 $142 g5 50. fxg5) 49... Be1 {[%emt 0:02:23]} 50. Kf3 {[%emt 0:00:38]} Ke6 {[%emt 0:00:15]} 51. Bxa7 {[%emt 0:00:03] And now b6 would win.} Kd7 {[%emt 0:00:19]} 52. Bf2 {[%emt 0:00:27]} (52. Bb6 $142 Kc8 53. g4) 52... Bc3 {[%emt 0:00:31]} 53. Ke4 {[%emt 0:00:07]} Kd6 {[%emt 0:00:12]} 54. a4 {[%emt 0:00:19][%cal Ba2a4,Ba4a5,Ba5a6][%mdl 32] Threatening mate with Bb6.} Ke6 {[%emt 0:00:42]} 55. Bb6 {[%emt 0:02:04] White mates.} Kd7 {[%emt 0:00:44]} 56. a5 {[%emt 0:00:40]} Kc8 {[%emt 0:00:21]} 57. a6 {[%emt 0:00:05]} Be1 {[%emt 0:00:45]} 58. Kf3 {[%emt 0:00:06]} Bc3 {[%emt 0:00:05]} 59. Bf2 {[%emt 0:00:18]} Bf6 {[%emt 0:01:44]} 60. Ke4 {[%emt 0:00:09]} Kb8 {[%emt 0:00:16]} 61. Kd5 {[%emt 0:00:06]} g5 {[%emt 0:00:38]} 62. fxg5 {[%emt 0:00:07]} Bxg5 {[%emt 0:00:09]} 63. Kc6 {[%emt 0:00:05]} h4 {[%emt 0:01:14]} 64. gxh4 {[%emt 0:00:05]} Bd8 {[%emt 0:00:19]} 65. b6 {[%emt 0:00:06][%cal Bb5b6,Bb6b7][%mdl 32]} Be7 {[%emt 0:01:00]} 66. a7+ {[%emt 0:00:13]} Ka8 {[%emt 0:00:13]} 67. b7# {[%emt 0:00:05] Weighted Error Value: White=0.27 (precise) /Black=0.61} 1-0

[Event "Polish Youth B18 Championship 2023"]
[Site "Jastrzebia Gora"]
[Date "2023.03.14"]
[Round "4.18"]
[White "Jedraszek, Pawel"]
[Black "Pieczulis, Blazej"]
[Result "0-1"]
[ECO "B18"]
[WhiteElo "1944"]
[BlackElo "1784"]
[Annotator "TA"]
[PlyCount "165"]
[EventDate "2023.03.11"]
[EventType "swiss"]
[EventCountry "POL"]
[SourceTitle "playchess.com"]
[Source "ChessBase"]
[SourceQuality "1"]
[TimeControl "40/5400+30:1800+30"]

{[%evp 26,165,35,33,32,6,101,116,151,149,147,143,148,125,128,121,124,126,125,92,75,85,87,75,72,72,70,74,72,72,68,27,31,33,71,61,79,7,19,38,45,9,7,0,0,-53,-39,-503,-501,-5281,-1116,-774,-5206,-4902,-5105,-2007,-1844,-1212,-1184,-968,-452,-439,-415,-638,-636,-636,-641,-29966,-12277,-6019,-29962,-29966,-29967,-29961,-5013,-29965,-29965,-29966,-29963,-4898,-939,-822,-822,-29961,-29962,-29967,-29969,-29968,-29968,-29970,-29972,-29972,-29973,-29973,-29973,-29971,-29973,-29973,-29974,-29972,-29970,-29977,-29976,-29976,-29977,-29974,-29975,-29975,-29976,-29974,-29977,-29979,-29980,-29993,-29983,-29983,-29984,-29984,-29982,-29984,-29985,-29985,-29984,-29984,0,-29985,-29985,-29985,-29986,-29986,-29987,-29989,-29988,-29994,-29989,-29989,-29982,-29988,-29989,-29990,-29991,-29992]} 1. e4 {[%emt 0:00:02]} c6 {[%emt 0:00:08]} 2. d4 {[%emt 0:00:05]} d5 {[%emt 0:00:03]} 3. Nc3 {[%emt 0:00:12]} dxe4 {[%emt 0:00:29]} 4. Nxe4 {[%emt 0:00:03]} Bf5 {[%emt 0:00:06]} 5. Ng3 {[%emt 0:00:12]} Bg6 {[%emt 0:00:40]} 6. h4 {[%emt 0:00:29]} h6 {[%emt 0:02:45]} 7. f4 {[%emt 0:00:26]} e6 {[%emt 0:04:00]} 8. Nf3 {[%emt 0:00:48]} Nd7 {[%emt 0:01:07]} 9. h5 {[%emt 0:01:02]} Bh7 10. Bd3 {[%emt 0:00:13]} Bxd3 {[%emt 0:04:34]} 11. Qxd3 {[%emt 0:00:04]} Qc7 {[%emt 0:01:17]} 12. Bd2 {[%emt 0:02:18]} O-O-O {[%emt 0:08:14]} 13. Qe2 {[%emt 0:03:20]} Ngf6 {[%emt 0:11:08]} 14. O-O-O {[%emt 0:02:14]} Nb6 {[%emt 0:06:26] B18: Classical Caro-Kann: 4...Bf5 sidelines.} 15. Kb1 {[%emt 0:05:45]} Nbd5 {[%emt 0:14:44]} (15... c5 $11) 16. Ne5 $16 {[%emt 0:04:40]} c5 {[%emt 0:05:28] White is better.} 17. c4 {[%emt 0:07:46]} Nb6 {[%emt 0:00:52] [#]} 18. Be3 $146 {[%emt 0:01:29]} ({Predecessor:} 18. dxc5 Bxc5 19. Ba5 Qe7 20. Nd3 Rd7 21. Rc1 Kb8 22. Ne5 Rd4 23. Rhf1 Rhd8 24. Bc3 {1-0 Gunajew,R (2225)-Janocko,P (2077) Plzen op 1st 2009 (5)}) 18... Na4 {[%emt 0:11:27]} 19. Qc2 {[%emt 0:14:52]} cxd4 {[%emt 0:04:35]} 20. Qxa4 {[%emt 0:01:03]} (20. Rxd4 $6 Rxd4 21. Bxd4 Bc5 $14) 20... dxe3 {[%emt 0:00:07]} 21. Rxd8+ {[%emt 0:00:21]} (21. Qxa7 $6 Bd6 22. Rxd6 (22. Qxe3 Ng4 $11) 22... Qxd6 $11) 21... Kxd8 {[%emt 0:03:16]} 22. Qxa7 {[%emt 0:03:17]} Bc5 {[%emt 0:02:39]} 23. Qa8+ {[%emt 0:10:20][%mdl 64] Skewer} Qc8 {[%emt 0:00:17]} 24. Qxc8+ {[%emt 0:08:05]} ({Of course not} 24. Qa4 Ke7 $11) 24... Kxc8 {[%emt 0:00:47]} 25. Nxf7 {[%emt 0:00:03]} Rf8 {[%emt 0:01:38]} 26. Ne5 {[%emt 0:00:08]} Rd8 {[%emt 0:00:32]} 27. Nf3 {[%emt 0:02:50] Prevents Rd2} Ng4 {[%emt 0:01:13]} 28. Kc2 {[%emt 0:06:42]} Nf2 $1 {[%emt 0:00:58]} 29. Rf1 {[%emt 0:01:16]} Rf8 {[%emt 0:05:17] [#]} 30. Ne2 {[%emt 0:00:50]} Bd6 {[%emt 0:00:27] [#]} 31. Nfd4 {[%emt 0:05:24]} (31. g3 $1 $16) 31... Kd7 $11 {[%emt 0:00:51]} 32. g3 {[%emt 0:00:17]} e5 {[%emt 0:00:38]} 33. fxe5 {[%emt 0:00:50]} Bxe5 {[%emt 0:00:06]} 34. a3 {[%emt 0:02:42]} Kd6 {[%emt 0:01:30]} 35. Nb5+ {[%emt 0:03:14] Excellent horsemanship.} (35. Re1 $11) 35... Kc5 $15 {[%emt 0:00:33]} 36. b3 {[%emt 0:00:29][%mdl 8192] Black continues to play with concentration.} (36. Nbc3 $1 $15) 36... Rd8 $19 {[%emt 0:00:35]} 37. Nbc3 {[%emt 0:07:08]} (37. Ned4 $142 Bxd4 38. Re1) 37... Rd2+ {[%emt 0:00:41]} 38. Kb1 {[%emt 0:00:13]} Bxc3 {[%emt 0:00:19][%mdl 64] Remove Defender} 39. Nxc3 {[%emt 0:00:30][%mdl 4096] Endgame KRN-KRN} Kd4 {[%emt 0:00:27]} 40. Rc1 {[%emt 0:00:00]} e2 {[%emt 0:00:00]} 41. Nxe2+ {[%emt 0:08:58]} Rxe2 {[%emt 0:04:43] KRN-KR} 42. c5 {[%emt 0:00:37]} Nd3 {[%emt 0:00:21]} (42... Ne4 $142 43. Rc2 Rxc2 44. Kxc2 Nxg3) 43. Rc4+ {[%emt 0:00:08]} Kd5 {[%emt 0:00:44] ...Rb2+ would be deadly.} 44. Rg4 {[%emt 0:00:37]} (44. Rc3 $142 Nxc5 45. Rc4) 44... Rb2+ {[%emt 0:00:28]} 45. Ka1 {[%emt 0:00:03]} Rxb3 {[%emt 0:00:51]} 46. Rxg7 {[%emt 0:00:57]} Rxa3+ {[%emt 0:02:40]} 47. Kb1 {[%emt 0:00:01]} Nxc5 {[%emt 0:00:08]} 48. g4 {[%emt 0:01:31]} Rg3 {[%emt 0:05:22]} 49. Rg6 {[%emt 0:01:29]} Ne6 {[%emt 0:01:45]} (49... b5 $142 50. Rf6 Rxg4 51. Rxh6 b4 52. Kc2 b3+ 53. Kc3 Rc4+ 54. Kd2 Rb4 55. Rg6 b2 56. Rg1 b1=Q 57. Rxb1 Rxb1 58. Ke3 Ne6 59. Kd3 Rh1 60. h6 Rxh6 61. Ke2 Rh3 62. Kd1 Kd4 63. Kc2 Nf4 64. Kb2 Rh2+ 65. Kb3 Nd5 66. Ka4 Kc4 67. Ka3 Nf6 68. Ka4 Ra2#) 50. Rxh6 {[%emt 0:00:35]} Rxg4 {[%emt 0:00:02]} 51. Rh8 {[%emt 0:00:22]} Rh4 {[%emt 0:00:51]} 52. h6 {[%emt 0:00:18]} Ng5 {[%emt 0:00:43] ( -> ...Nf7)} 53. Kc2 {[%emt 0:03:03]} Nf7 {[%emt 0:00:19][%csl LRh6,LRh8]} 54. Rh7 {[%emt 0:00:21]} Ke6 {[%emt 0:00:20]} ({Stronger than} 54... Nxh6 55. Rxb7 Ng4 56. Kc3 $15) 55. Kb3 {[%emt 0:00:17]} Rxh6 {[%emt 0:00:04]} ({Worse is} 55... Nxh6 56. Rxb7 Nf5 57. Rb6+ Kd5 58. Rb5+ Ke6 59. Kc3 $15) 56. Rg7 {[%emt 0:00:13]} Rh4 {[%emt 0:00:40]} 57. Rg6+ {[%emt 0:00:15]} Kd5 {[%emt 0:00:16]} 58. Rg7 {[%emt 0:00:19]} Nd6 {[%emt 0:00:10]} 59. Rc7 {[%emt 0:00:13]} b5 {[%emt 0:00:23]} 60. Rg7 {[%emt 0:00:15]} Kc5 {[%emt 0:00:38]} 61. Rg5+ {[%emt 0:00:04]} Kc6 {[%emt 0:00:12]} 62. Rg6 {[%emt 0:00:15]} Rf4 {[%emt 0:00:11]} 63. Rh6 {[%emt 0:00:06]} Kc5 {[%emt 0:00:12]} 64. Rh5+ {[%emt 0:00:19]} Rf5 {[%emt 0:00:28]} 65. Rh3 {[%emt 0:00:06]} Nc4 {[%emt 0:00:12]} 66. Rh8 {[%emt 0:00:12]} Rf3+ {[%emt 0:00:10]} 67. Kc2 {[%emt 0:00:02]} Kb4 {[%emt 0:00:10]} 68. Rb8 {[%emt 0:00:10]} Rf2+ {[%emt 0:00:18]} 69. Kb1 {[%emt 0:00:15]} Na3+ {[%emt 0:00:05]} 70. Kc1 {[%emt 0:00:12]} Kb3 {[%emt 0:00:14]} 71. Rh8 {[%emt 0:00:12]} Rc2+ {[%emt 0:00:06]} 72. Kd1 {[%emt 0:00:03]} b4 {[%emt 0:00:04][%cal Bb5b4,Bb4b3,Bb3b2][%mdl 32]} 73. Rh4 {[%emt 0:00:29]} Rc4 {[%emt 0:00:16]} 74. Rh2 {[%emt 0:00:17]} Rc2 {[%emt 0:00:50]} 75. Rh4 $1 {[%emt 0:00:05]} Nc4 {[%emt 0:00:03] Black mates.} 76. Rh8 {[%emt 0:00:11]} Kb2 {[%emt 0:00:09]} 77. Ra8 {[%emt 0:00:31]} b3 {[%emt 0:00:04]} 78. Ra4 {[%emt 0:00:13]} Kb1 {[%emt 0:00:29]} 79. Rb4 {[%emt 0:00:10]} b2 {[%emt 0:00:06]} 80. Ra4 {[%emt 0:00:07]} Rc1+ {[%emt 0:01:01]} 81. Ke2 {[%emt 0:00:06]} Kc2 {[%emt 0:00:48]} 82. Rxc4+ {[%emt 0:00:30]} Kb3 {[%emt 0:00:03]} 83. Rxc1 {[%emt 0:00:05] Weighted Error Value: White=0.83/Black=0.50} 0-1

[Event "Polish Youth B18 Championship 2023"]
[Site "Jastrzebia Gora"]
[Date "2023.03.14"]
[Round "4.19"]
[White "Kitewski, Bartosz"]
[Black "Czarniecki, Pawel"]
[Result "1-0"]
[ECO "A88"]
[WhiteElo "1968"]
[BlackElo "1625"]
[Annotator "TA"]
[PlyCount "83"]
[EventDate "2023.03.11"]
[EventType "swiss"]
[EventCountry "POL"]
[SourceTitle "playchess.com"]
[Source "ChessBase"]
[SourceQuality "1"]
[TimeControl "40/5400+30:1800+30"]

{[%evp 14,83,27,29,45,14,76,72,83,75,83,70,87,41,46,61,77,50,107,94,102,112,237,214,396,409,398,189,502,522,523,483,524,528,566,553,604,595,749,769,1237,1255,1155,1224,1350,1328,1612,1637,1606,1573,2804,2604,29988,29989,29989,29984,29988,29989,29993,29994,29994,29990,29990,29991,29991,29992,29992,29993,29993,29994,29994,29995]} 1. d4 {[%emt 0:01:43]} f5 {[%emt 0:00:05]} 2. c4 {[%emt 0:00:09]} Nf6 {[%emt 0:00:06]} 3. g3 {[%emt 0:00:07]} g6 {[%emt 0:00:07]} 4. Bg2 {[%emt 0:00:06]} Bg7 {[%emt 0:00:06]} 5. Nf3 {[%emt 0:00:05]} O-O {[%emt 0:00:34]} 6. O-O {[%emt 0:00:09]} d6 {[%emt 0:00:09]} 7. Nc3 {[%emt 0:00:06]} c6 {[%emt 0:00:09]} 8. b3 {[%emt 0:01:05]} Nbd7 {[%emt 0:01:41] 8...Qa5 is becoming the main line. A88: Dutch Defence: Leningrad System: 5 Nf3 0-0 6 0-0 d6 7 Nc3 c6.} 9. Re1 {[%emt 0:03:42] [#]} Qc7 $146 {[%emt 0:09:54]} (9... e5 $11) ({Predecessor:} 9... h6 10. Qc2 e5 11. dxe5 Nxe5 12. Ba3 Ne4 13. Nxe5 Bxe5 14. Bxe4 fxe4 15. f4 exf3 16. Qxg6+ {0-1 Toncheva,N (1939)-Eftovski,M (1723) Skopje op 2019 (8)}) 10. Ng5 $16 {[%emt 0:07:22]} Nb6 {[%emt 0:03:38] White is better.} 11. a4 {[%emt 0:02:21] [#] And now a5 would win. White is more active.} h6 {[%emt 0:06:13]} 12. Nf3 {[%emt 0:01:43][%cal Bg5f3,Bf3h4,Bh4g6][%mdl 32]} ({But not} 12. a5 Nxc4 13. bxc4 hxg5 $11) 12... a5 {[%emt 0:00:20]} 13. Qc2 {[%emt 0:03:05]} ({White should play} 13. Ba3 $16) 13... e5 $14 {[%emt 0:06:56]} 14. dxe5 {[%emt 0:01:54]} dxe5 {[%emt 0:00:06]} 15. Ba3 {[%emt 0:07:43]} Rd8 {[%emt 0:02:23]} (15... e4 $14) 16. Nh4 $16 {[%emt 0:00:46]} Qf7 {[%emt 0:10:27]} 17. e4 {[%emt 0:02:00][%cal Re4f5]} Nh5 {[%emt 0:01:17] A mistake that costs the game.} (17... f4 $16) 18. exf5 {[%emt 0:07:40]} g5 {[%emt 0:03:54]} (18... Bxf5 19. Ne4 Bf8 20. Bxf8 Qxf8) 19. Ng6 $18 {[%emt 0:08:12]} Re8 {[%emt 0:01:16]} 20. Qe2 {[%emt 0:00:59]} (20. g4 $142) 20... Kh7 $2 {[%emt 0:17:48]} (20... Bxf5 {is more resistant.} 21. Ne7+ Rxe7) 21. g4 {[%emt 0:03:25]} Nf6 {[%emt 0:04:36]} 22. h3 {[%emt 0:01:57]} Nbd7 {[%emt 0:03:34]} 23. Rad1 {[%emt 0:01:18]} Ra6 {[%emt 0:04:26]} 24. Rd6 {[%emt 0:04:35]} Rb6 {[%emt 0:03:26]} 25. Qc2 {[%emt 0:01:30]} Bf8 {[%emt 0:04:14]} 26. Nxf8+ {[%emt 0:06:07]} Nxf8 {[%emt 0:00:11] [#]} 27. Rxf6 $1 {[%emt 0:07:35][%mdl 512]} Qxf6 {[%emt 0:01:31]} 28. Ne4 {[%emt 0:00:11][%cal Bc3e4,Be4d6,Bd6f7][%mdl 32]} Qh8 {[%emt 0:01:16]} 29. Nd6 {[%emt 0:01:05]} Rd8 {[%emt 0:02:33]} 30. Nf7 {[%emt 0:00:40][%csl LRd8,LRe5,LRh8]} Qf6 {[%emt 0:00:41]} 31. Nxd8 {[%emt 0:00:12][%cal Oa3e7] Be7! is the strong threat.} Qxd8 {[%emt 0:00:20]} 32. Bxf8 {[%emt 0:01:20] White wants to mate with f6+.} Qxf8 {[%emt 0:00:17] Black is weak on the light squares} 33. f6+ {[%emt 0:00:32][%cal Bf5f6,Bf6f7][%mdl 32] White mates.} Kh8 {[%emt 0:00:28]} 34. Rxe5 {[%emt 0:00:31]} c5 {[%emt 0:02:26]} 35. Re7 {[%emt 0:00:26][%csl Ge7][%cal Rc2h7]} Qg8 {[%emt 0:00:07]} 36. f7 {[%emt 0:00:41]} Qf8 {[%emt 0:00:33]} 37. Re8 {[%emt 0:00:34]} Kg7 {[%emt 0:00:09]} 38. Rxf8 {[%emt 0:00:39]} Kxf8 {[%emt 0:00:06]} 39. Qh7 {[%emt 0:00:16]} Rf6 {[%emt 0:00:13]} 40. Qg8+ {[%emt 0:00:00]} Ke7 {[%emt 0:00:00]} 41. Qe8+ {[%emt 0:00:53]} Kd6 {[%emt 0:00:31]} 42. Qd8+ {[%emt 0:00:46] Weighted Error Value: White=0.14 (very precise) /Black=0.68} 1-0

[Event "Polish Youth B18 Championship 2023"]
[Site "Jastrzebia Gora"]
[Date "2023.03.14"]
[Round "4.20"]
[White "Kossowski, Pawel"]
[Black "Pisarek, Jan"]
[Result "1/2-1/2"]
[ECO "B40"]
[WhiteElo "1766"]
[BlackElo "1931"]
[Annotator "TA"]
[PlyCount "67"]
[EventDate "2023.03.11"]
[EventType "swiss"]
[EventCountry "POL"]
[SourceTitle "playchess.com"]
[Source "ChessBase"]
[SourceQuality "1"]
[TimeControl "40/5400+30:1800+30"]

{[%evp 26,67,27,22,14,16,28,30,40,27,22,17,58,62,58,45,39,0,6,14,18,0,0,0,0,0,0,0,0,0,0,0,0,0,0,0,0,0,0,0,0,0,0,0]} 1. e4 {[%emt 0:00:01]} c5 {[%emt 0:00:08]} 2. Nf3 {[%emt 0:00:50][%cal Bg1f3,Bf3d4,Bd4b5,Bb5c3,Bc3e2][%mdl 32]} e6 {[%emt 0:00:09]} 3. d4 {[%emt 0:00:06]} cxd4 {[%emt 0:00:08]} 4. Nxd4 {[%emt 0:00:07]} Nf6 {[%emt 0:00:06]} 5. Nc3 {[%emt 0:00:05]} Nc6 {[%emt 0:00:05]} 6. Ndb5 {[%emt 0:00:12]} Bb4 {[%emt 0:00:08]} 7. a3 {[%emt 0:00:06]} Bxc3+ {[%emt 0:00:08]} 8. Nxc3 {[%emt 0:00:06]} d5 {[%emt 0:00:15]} 9. exd5 {[%emt 0:00:14]} exd5 {[%emt 0:00:07]} 10. Bd3 {[%emt 0:00:08]} O-O {[%emt 0:00:18]} 11. O-O {[%emt 0:00:24]} d4 {[%emt 0:00:07]} 12. Ne2 {[%emt 0:00:15]} Bg4 {[%emt 0:00:12]} 13. f3 {[%emt 0:00:24]} Bh5 {[%emt 0:00:08]} 14. Bg5 {[%emt 0:00:07]} Bg6 $1 {[%emt 0:00:41][%mdl 4] is currently scoring better than 14...Qd6. B45: Sicilian Four Knights.} 15. Qd2 {[%emt 0:00:05]} Qd6 16. Rad1 {[%emt 0:00:33]} Rad8 {[%emt 0:02:50] White has an edge.} 17. Bxg6 {[%emt 0:00:44]} hxg6 {[%emt 0:00:48] [#]} 18. Be3 $1 {[%emt 0:00:23][%cal Re2d4]} d3 {[%emt 0:30:51]} (18... Nd5 19. Bf2) 19. cxd3 {[%emt 0:11:01]} Ne5 {[%emt 0:02:52][%cal Rd6d3] [#]} 20. Qc2 $146 {[%emt 0:16:47]} ({Predecessor:} 20. Bf4 Qxd3 21. Qe1 Qb5 22. Nd4 Rxd4 23. Rxd4 Nc6 24. Rd2 g5 25. Bg3 g4 26. fxg4 Nxg4 {½-½ Lhotsky,Z (1923)-Koubova,A (2110) Ricany op-A 2018 (3)}) 20... Rfe8 {[%emt 0:04:53][%cal Re5d3]} 21. Bf4 {[%emt 0:12:36]} Qa6 {[%emt 0:00:07][%cal Re5d3] The position is equal.} 22. Bxe5 {[%emt 0:00:30]} Rxe5 {[%emt 0:00:30]} 23. Nc3 {[%emt 0:00:21]} Nd5 {[%emt 0:03:19]} 24. Nxd5 {[%emt 0:00:42]} Rexd5 {[%emt 0:00:09]} 25. Rfe1 {[%emt 0:02:15]} Rxd3 {[%emt 0:03:33]} 26. Rxd3 {[%emt 0:01:25]} Qxd3 {[%emt 0:00:30]} 27. Qxd3 {[%emt 0:00:17]} Rxd3 $11 {[%emt 0:00:06][%mdl 4096] Endgame KR-KR} 28. Re8+ {[%emt 0:00:09]} Kh7 {[%emt 0:00:05]} 29. Kf2 {[%emt 0:00:16]} Rb3 {[%emt 0:00:13]} 30. Re2 {[%emt 0:00:28]} g5 {[%emt 0:00:10]} 31. Ke1 {[%emt 0:06:03]} Kg6 {[%emt 0:00:09]} 32. Kd1 {[%emt 0:00:32]} Kf6 {[%emt 0:02:43]} 33. Kc2 {[%emt 0:00:21]} Rb6 {[%emt 0:00:27]} 34. h3 {[%emt 0:00:37] Weighted Error Value: White=0.05 (flawless) /Black=0.04 (flawless)} 1/2-1/2